fUST/lending_fUST_20240111
["ID","MTS","AMOUNT","RATE_DAILY","PERIOD"]
[311170998,1704961850697,-865.33,0.00030958,2]
[311170999,1704961850706,-500.0,0.00030958,2]
[311171000,1704961850715,-2170.83,0.00030958,2]
[311171001,1704961850724,-502.35426296,0.00030958,2]
[311171002,1704961850734,-500.0,0.00030958,2]
[311171003,1704961850743,-793.97,0.00030958,2]
[311171004,1704961850752,-500.0,0.00030958,2]
[311171005,1704961850761,-500.0,0.00030958,2]
[311171006,1704961850770,-500.0,0.00030958,2]
[311171007,1704961850779,-948.2,0.00030958,2]
[311171008,1704961850788,-500.0,0.00030958,2]
[311171009,1704961850797,-1085.34,0.00030958,2]
[311171010,1704961850806,-500.0,0.00030958,2]
[311171011,1704961850816,-500.0,0.00030958,2]
[311171012,1704961850825,-500.0,0.00030958,2]
[311171013,1704961850835,-500.0,0.00030958,2]
[311171014,1704961850844,-500.0,0.00030958,2]
[311171015,1704961850853,-500.0,0.00030958,2]
[311171016,1704961850863,-477.77830519,0.00030958,2]
[311171017,1704961850872,-2087.46,0.00030958,2]
[311171018,1704961850881,-500.0,0.00030958,2]
[311171019,1704961850890,-1155.181581,0.00030958,2]
[311171020,1704961850900,-1155.181581,0.00030958,2]
[311171021,1704961850909,-192.014833,0.00030958,2]
[311171022,1704961850918,-192.014833,0.00030958,2]
[311171023,1704961850928,-5518.496776,0.00030958,2]
[311171024,1704961850938,-5518.496776,0.00030958,2]
[311171025,1704961850948,-153.89428806,0.00030996,2]
[311171026,1704961850957,-226858.18193973,0.00031,7]
[311171027,1704961850966,-89153.52720284,0.00031,8]
[311171028,1704961851112,-248.51032066,0.00029999,2]
[311171029,1704961851122,-500.0,0.00030958,2]
[311171030,1704961851131,-2001.56887597,0.00031,8]
[311171031,1704961851715,-500.0,0.00023288,2]
[311171032,1704961851724,-500.0,0.00023288,2]
[311171033,1704961851734,-500.0,0.00023288,2]
[311171034,1704961851743,-500.0,0.00023288,2]
[311171035,1704961851754,-500.0,0.00023288,2]
[311171036,1704961851765,-500.0,0.00023288,2]
[311171037,1704961851774,-400.0,0.00023288,2]
[311171038,1704961851786,-100.0,0.00023288,2]
[311171039,1704961851795,-500.0,0.00023288,2]
[311171040,1704961851804,-121.80899338,0.00023288,2]
[311171041,1704961851828,-378.19100662,0.00023288,2]
[311171042,1704961851837,-500.0,0.00023288,2]
[311171043,1704961851846,-500.0,0.00023288,2]
[311171044,1704961851855,-500.0,0.00023288,2]
[311171045,1704961851864,-500.0,0.00023288,2]
[311171046,1704961851873,-186.35755179,0.00023288,2]
[311171047,1704961851883,-500.0,0.00023288,2]
[311171048,1704961851892,-500.0,0.00023288,2]
[311171049,1704961851901,-500.0,0.00023288,2]
[311171050,1704961851910,-500.0,0.00023288,2]
[311171051,1704961851919,-500.0,0.00023288,2]
[311171052,1704961851928,-500.0,0.00023288,2]
[311171053,1704961851937,-500.0,0.00023288,2]
[311171054,1704961851945,-500.0,0.00023288,2]
[311171055,1704961851954,-287.32152096,0.00023288,2]
[311171056,1704961852204,-212.67847904,0.00023288,2]
[311171057,1704961852214,-500.0,0.00023288,2]
[311171058,1704961852223,-500.0,0.00023288,2]
[311171059,1704961852232,-370.33632598,0.00023288,2]
[311171060,1704961852241,-314.97821406,0.00023288,2]
[311171061,1704961852250,-500.0,0.00023288,2]
[311171062,1704961852259,-500.0,0.00023288,2]
[311171063,1704961852268,-484.17138139,0.00023288,2]
[311171064,1704961852279,-15.82861861,0.00023288,2]
[311171065,1704961852288,-500.0,0.00023288,2]
[311171066,1704961852297,-257.29338139,0.00023288,2]
[311171067,1704961852308,-242.70661861,0.00023288,2]
[311171068,1704961852317,-539.45559788,0.00023288,2]
[311171069,1704961852327,-500.0,0.00023288,2]
[311171070,1704961852336,-53.76256851,0.00023288,2]
[311171153,1704963033624,-1693.74494191,0.0001907,2]
[311171155,1704963033634,-155.09305583,0.00019071,3]
[311171157,1704963033644,-155.09305583,0.00019071,2]
[311171159,1704963033652,-307.96894643,0.00019071,2]
[311171227,1704963038499,-1271.00908079,0.00019071,2]
[311171229,1704963038508,-246.10686283,0.00019072,2]
[311171231,1704963038517,-158.11687985,0.00019079,2]
[311171233,1704963038526,-6700.35075794,0.00019181,2]
[311171237,1704963038556,-18199.64924206,0.00019181,2]
[311171239,1704963038565,-165.100078,0.00019479,2]
[311171241,1704963038574,-1112.22182837,0.000195,2]
[311171243,1704963038585,-853.72221584,0.0002,2]
[311171245,1704963038595,-1000.0,0.0002,2]
[311171247,1704963038604,-155.09305583,0.0002,2]
[311171250,1704963038614,-155.09305583,0.0002,2]
[311171252,1704963038623,-1195.27282006,0.00020721,2]
[311171253,1704963038632,-677.0708176,0.00020722,2]
[311171255,1704963038641,-236.97375297,0.00020723,2]
[311171258,1704963038651,-266.37190097,0.00020723,2]
[311171260,1704963038660,-326.7917286,0.00021016,2]
[311171261,1704963038669,-164.439722,0.00021017,2]
[311171264,1704963038679,-200.0,0.00021098,7]
[311171266,1704963038688,-270.861979,0.00021265,2]
[311171268,1704963038697,-166.666666,0.00021918,2]
[311171269,1704963038706,-292.87321948,0.00022,4]
[311171271,1704963038716,-156.88951629,0.00022,2]
[311171273,1704963038726,-783.53547067,0.00022,2]
[311171275,1704963038736,-4918.87947459,0.00022,2]
[311171277,1704963038745,-3935.17481612,0.00022428,2]
[311171280,1704963038755,-166.666666,0.00022431,2]
[311171282,1704963038764,-166.666666,0.00022944,2]
[311171284,1704963038773,-979.68521314,0.00022998,2]
[311171286,1704963038782,-270787.85398816,0.00022999,2]
[311171288,1704963038791,-2093.45221107,0.00023,2]
[311171290,1704963038800,-9923.17263833,0.00023,2]
[311171291,1704963038809,-280.0,0.00023208,7]
[311171294,1704963038819,-1822.05331204,0.00023288,2]
[311171295,1704963038828,-200.0,0.00023288,2]
[311171297,1704963038838,-300.0,0.00023288,2]
[311171300,1704963038847,-2079.89647566,0.00023288,2]
[311171302,1704963038856,-166.666666,0.00023456,2]
[311171304,1704963038865,-166.666666,0.00023969,2]
[311171306,1704963038874,-497.12734932,0.0002398,5]
[311171308,1704963038884,-7687.90703714,0.00024,2]
[311171310,1704963038893,-614.12133667,0.00024,2]
[311171311,1704963038902,-166.666666,0.00024482,2]
[311171313,1704963038911,-687.75702701,0.000247,2]
[311171315,1704963038920,-677.62834989,0.00025,2]
[311171317,1704963038929,-4711.91259146,0.00025,2]
[311171319,1704963038938,-3000.0,0.00025,2]
[311171322,1704963038948,-391.0,0.00025529,7]
[311171323,1704963038956,-525.99300196,0.00026,2]
[311171325,1704963038966,-620.0006706,0.00026488,2]
[311171328,1704963038975,-460.6542226,0.00027,2]
[311171329,1704963038984,-9100.04106185,0.000273,4]
[311171331,1704963038994,-155.0,0.00027397,2]
[311171334,1704963039003,-500.0,0.00027397,2]
[311171336,1704963039012,-620.00003353,0.00027812,2]
[311171337,1704963039021,-305.07101819,0.00028,2]
[311171338,1704963039033,-200.0,0.00028082,15]
[311171339,1704963039042,-348.0,0.00028082,15]
[311171340,1704963039050,-155.0,0.00028767,2]
[311171341,1704963039059,-7543.67299603,0.00028858,2]
[311171342,1704963039068,-155.08684864,0.00029,2]
[311171343,1704963039077,-1983.449916,0.00029,2]
[311171344,1704963039086,-620.00000168,0.00029203,2]
[311171345,1704963039095,-150.144,0.00029238,2]
[311171346,1704963039104,-38322.86240763,0.00029248,3]
[311171347,1704963039113,-8310.420086,0.00029248,3]
[311171348,1704963039123,-20460.97368312,0.00029248,3]
[311171349,1704963039133,-5401.67237014,0.00029248,3]
[311171352,1704963039154,-200.45,0.000293,4]
[311171354,1704963039165,-2848.37877952,0.000298,2]
[311171356,1704963039175,-500.0,0.00029897,2]
[311171358,1704963039185,-500.0,0.00029897,2]
[311171360,1704963039194,-500.0,0.00029897,2]
[311171362,1704963039204,-500.0,0.00029897,2]
[311171364,1704963039213,-500.0,0.00029897,2]
[311171366,1704963039223,-500.0,0.00029897,2]
[311171369,1704963039233,-500.0,0.00029897,2]
[311171371,1704963039242,-594.35412662,0.00029897,2]
[311171373,1704963039251,-330.22065731,0.00029897,2]
[311171375,1704963039260,-622.20179558,0.00029897,2]
[311171377,1704963039270,-500.0,0.00029897,2]
[311171379,1704963039279,-500.0,0.00029897,2]
[311171381,1704963039289,-311.81453107,0.00029897,2]
[311171383,1704963039300,-500.0,0.00029897,2]
[311171385,1704963039309,-500.0,0.00029897,2]
[311171387,1704963039318,-500.0,0.00029897,2]
[311171389,1704963039328,-500.0,0.00029897,2]
[311171391,1704963039337,-502.16833132,0.00029897,2]
[311171393,1704963039346,-500.0,0.00029897,2]
[311171395,1704963039355,-500.0,0.00029897,2]
[311171397,1704963039364,-500.0,0.00029897,2]
[311171399,1704963039374,-500.0,0.00029897,2]
[311171401,1704963039383,-500.0,0.00029897,2]
[311171403,1704963039392,-500.0,0.00029897,2]
[311171405,1704963039403,-500.0,0.00029897,2]
[311171407,1704963039412,-500.0,0.00029897,2]
[311171409,1704963039422,-500.0,0.00029897,2]
[311171411,1704963039431,-500.0,0.00029897,2]
[311171413,1704963039440,-500.0,0.00029897,2]
[311171415,1704963039451,-139819.44845044,0.00029937,2]
[311171510,1704963041396,-348.8461427,0.00029937,2]
[311171542,1704963043960,-10519.5706647,0.00029937,2]
[311171690,1704963643754,1000.0,0.0003,30]
[311172300,1704964239647,-155.108576,0.00016504,3]
[311172302,1704964239657,-155.108576,0.00016505,2]
[311172305,1704964239667,-272.00985266,0.00016506,2]
[311172307,1704964239677,-1693.74494191,0.00016507,2]
[311172309,1704964239687,-560.56224867,0.00016508,2]
[311172311,1704964239696,-19663.58309656,0.00016509,2]
[311172312,1704964239706,-4789.41827786,0.0001651,2]
[311172314,1704964239718,-19393.7590313,0.0001652,2]
[311172315,1704964239727,-948.016926,0.00016583,2]
[311172316,1704964239737,-872.72571525,0.00017235,2]
[311172317,1704964239747,-588.56945511,0.00017584,2]
[311172318,1704964239756,-470.94036832,0.00017584,2]
[311172319,1704964239766,-270787.85398816,0.00017584,2]
[311172320,1704964239776,-250.85632269,0.00017585,2]
[311172321,1704964239786,-8707.85229204,0.00017585,2]
[311172322,1704964239796,-24900.0,0.00017587,2]
[311172323,1704964239807,-246.10686283,0.000178,2]
[311172324,1704964239817,-10503.19627673,0.00017898,2]
[311172325,1704964239827,-984.42014104,0.00017996,2]
[311172326,1704964239836,-2839.26936827,0.00017996,2]
[311172328,1704964239847,-200.0,0.0001817,2]
[311172329,1704964239857,-1578.97802722,0.00019,2]
[311172330,1704964239867,-164.7699,0.00019178,2]
[311172331,1704964239877,-2967.56503246,0.00019395,2]
[311172332,1704964239887,-2435.90423277,0.00019495,2]
[311172333,1704964239898,-783.55103167,0.00019495,2]
[311172334,1704964239907,-789.02686556,0.00019496,2]
[311172335,1704964239917,-1112.22182837,0.000195,2]
[311172336,1704964239927,-158.25059054,0.00019793,2]
[311172337,1704964239937,-930.18501479,0.00019795,2]
[311172338,1704964239947,-280.0,0.00019987,2]
[311172339,1704964239957,-878.43756721,0.00019993,2]
[311172340,1704964239967,-444.27062889,0.00019993,2]
[311172341,1704964239976,-309.62844586,0.00019993,2]
[311172342,1704964239985,-938.11656563,0.00019994,2]
[311172343,1704964239995,-177.3925437,0.00019995,2]
[311172344,1704964240005,-1293.81019542,0.00019995,2]
[311172345,1704964240015,-156.63290004,0.00019995,2]
[311172346,1704964240024,-164.95771974,0.00019995,2]
[311172347,1704964240168,-525.50594084,0.00019995,2]
[311172348,1704964240180,-736.64323453,0.00019995,2]
[311172349,1704964240191,-191.01244923,0.00019995,2]
[311172350,1704964240200,-593.96547105,0.00019995,2]
[311172351,1704964240209,-182.20255429,0.00019995,2]
[311172352,1704964240219,-309.76592696,0.00019995,2]
[311172353,1704964240228,-6601.0799912,0.00019995,2]
[311172354,1704964240238,-155.20238208,0.00019995,2]
[311172355,1704964240247,-155.82283665,0.00019995,2]
[311172356,1704964240258,-222.06298067,0.00019995,2]
[311172357,1704964240268,-156.20482538,0.00019995,2]
[311172358,1704964240278,-310.88585753,0.00019995,2]
[311172359,1704964240288,-213.62341382,0.00019995,2]
[311172360,1704964240297,-224.87458001,0.00019995,2]
[311172361,1704964240306,-1034.3805318,0.00019995,2]
[311172362,1704964240316,-196.08850221,0.00019995,2]
[311172363,1704964240324,-3026.76599741,0.00019995,2]
[311172364,1704964240334,-214.31143933,0.00019995,2]
[311172365,1704964240344,-1951.52064673,0.00019995,2]
[311172366,1704964240353,-166.81952113,0.00019995,2]
[311172367,1704964240363,-380.94155664,0.00019995,2]
[311172368,1704964240373,-5137.77250731,0.00019995,2]
[311172369,1704964240385,-328.87291893,0.00019995,2]
[311172370,1704964240394,-3061.21667734,0.00019995,2]
[311172371,1704964240403,-242.46218546,0.00019995,2]
[311172372,1704964240413,-633.49224014,0.00019995,2]
[311172373,1704964240422,-156.20759517,0.00019995,2]
[311172374,1704964240438,-860.80550823,0.00019995,2]
[311172375,1704964240447,-155.60009811,0.00019995,2]
[311172376,1704964240456,-192.13377615,0.00019995,2]
[311172377,1704964240466,-279.62969661,0.00019995,2]
[311172378,1704964240475,-858.28488296,0.00019995,2]
[311172379,1704964240484,-512.08937232,0.00019995,2]
[311172380,1704964240494,-281.63320693,0.00019995,2]
[311172381,1704964240504,-2726.99510204,0.00019995,2]
[311172382,1704964240513,-329.91794083,0.00019995,2]
[311172383,1704964240522,-284.59138935,0.00019995,2]
[311172384,1704964240531,-401.25015597,0.00019995,2]
[311172386,1704964240540,-261.71556348,0.00019995,2]
[311172388,1704964240548,-1490.84800901,0.00019995,2]
[311172389,1704964240557,-914.09173823,0.00019995,2]
[311172390,1704964240567,-268.27648254,0.00019995,2]
[311172391,1704964240576,-492.92036824,0.00019996,2]
[311172392,1704964240585,-164.08761243,0.00019996,2]
[311172393,1704964240595,-364.32816145,0.00019996,2]
[311172394,1704964240604,-11503.01912107,0.00019996,2]
[311172395,1704964240613,-16063.98230739,0.00019998,2]
[311172396,1704964240623,-2130.59703965,0.0002,5]
[311172397,1704964240633,-1476.18263852,0.0002,2]
[311172398,1704964240643,-155.11478494,0.0002,2]
[311172399,1704964240652,-236.97375297,0.0002,2]
[311172400,1704964240662,-1195.27282006,0.0002,2]
[311172401,1704964240671,-677.0708176,0.0002,2]
[311172402,1704964240681,-853.72221584,0.0002,2]
[311172403,1704964240690,-266.37190097,0.0002,2]
[311172404,1704964240700,-569.37401545,0.0002,2]
[311172405,1704964240709,-665.38112702,0.0002,2]
[311172406,1704964240719,-200.0,0.0002,2]
[311172407,1704964240729,-494.45724054,0.0002,7]
[311172408,1704964240738,-168.57048586,0.0002,2]
[311172409,1704964240748,-155.108576,0.0002,2]
[311172410,1704964240757,-155.108576,0.0002,2]
[311172411,1704964240766,-6528.127613,0.0002,2]
[311172412,1704964240776,-6528.127613,0.0002,2]
[311172413,1704964240785,-6528.127613,0.0002,2]
[311172414,1704964240795,-6528.127613,0.0002,2]
[311172416,1704964240805,-6528.127613,0.0002,2]
[311172417,1704964240814,-155.11633725,0.0002,2]
[311172418,1704964240823,-178.47633031,0.00020896,2]
[311172419,1704964240833,-79924.69909751,0.00020899,2]
[311172420,1704964240842,-1000.0,0.00020996,2]
[311172421,1704964240851,-232.56616313,0.00021,2]
[311172422,1704964240861,-21896.11056994,0.00021,2]
[311172423,1704964240870,-193.97785315,0.00021,2]
[311172424,1704964240880,-1546.81985246,0.00021,2]
[311172425,1704964240889,-326.7917286,0.00021,2]
[311172426,1704964240899,-166.666666,0.00021918,2]
[311172427,1704964240908,-337.0634007,0.00021918,2]
[311172428,1704964240917,-391.0,0.00021985,7]
[311172429,1704964240927,-3935.17481612,0.00022,2]
[311172430,1704964240936,-156.88951629,0.00022,2]
[311172431,1704964240945,-4918.87947459,0.00022,2]
[311172432,1704964240954,-783.53547067,0.00022,2]
[311172433,1704964240963,-292.87321948,0.00022,4]
[311172434,1704964240974,-166.666666,0.00022431,2]
[311172435,1704964240984,-166.666666,0.00022944,2]
[311172436,1704964240993,-2093.45221107,0.00023,2]
[311172437,1704964241003,-9923.17263833,0.00023,2]
[311172438,1704964241012,-166.666666,0.00023456,2]
[311172439,1704964241021,-166.666666,0.00023969,2]
[311172440,1704964241030,-497.12734932,0.0002398,5]
[311172441,1704964241039,-614.12133667,0.00024,2]
[311172442,1704964241048,-7687.90703714,0.00024,2]
[311172443,1704964241058,-200.0,0.00024184,7]
[311172444,1704964241068,-348.0,0.00024184,7]
[311172445,1704964241079,-166.666666,0.00024482,2]
[311172446,1704964241088,-380.0,0.00024658,2]
[311172447,1704964241098,-200.0,0.00024658,2]
[311172448,1704964241108,-687.75702701,0.000247,2]
[311172449,1704964241117,-948.016926,0.00024875,2]
[311172450,1704964241126,-4711.91259146,0.00025,2]
[311172451,1704964241136,-155.24711582,0.00025,2]
[311172452,1704964241145,-677.62834989,0.00025,2]
[311172453,1704964241154,-155.12409928,0.00025,2]
[311172454,1704964241165,-155.2351122,0.00025,2]
[311172455,1704964241174,-3000.0,0.00025,2]
[311172456,1704964241183,-295.41689888,0.00025,2]
[311172457,1704964241192,-7193.15698043,0.00025297,2]
[311172458,1704964241201,-200.0,0.00025479,2]
[311172459,1704964241210,-240.7469676,0.00026,2]
[311172460,1704964241220,-525.99300196,0.00026,2]
[311172461,1704964241229,-3645.64225585,0.00026,2]
[311172462,1704964241239,-722.17491315,0.00026488,2]
[311172463,1704964241248,-309.94478728,0.000265,2]
[311172464,1704964241257,-200.0,0.00026602,15]
[311172465,1704964241266,-200.0,0.00026602,15]
[311172466,1704964241275,-368.0,0.00026602,15]
[311172467,1704964241284,-460.6542226,0.00027,2]
[311172468,1704964241293,-155.0,0.00027397,2]
[311172469,1704964241302,-506.13,0.00027397,2]
[311172471,1704964241311,-150.45908947,0.00027397,7]
[311172472,1704964241320,-34815.28968525,0.000275,2]
[311172473,1704964241330,-506.13,0.00027534,2]
[311172474,1704964241339,-506.13,0.00027671,2]
[311172475,1704964241348,-506.13,0.00027808,2]
[311172476,1704964241357,-625.10874566,0.00027812,2]
[311172477,1704964241366,-5972.07445519,0.00027837,2]
[311172479,1704964241376,-506.13,0.00027945,2]
[311172480,1704964241385,-1500.0,0.00028,2]
[311172481,1704964241394,-506.13,0.00028082,2]
[311172482,1704964241403,-506.13,0.00028219,2]
[311172483,1704964241413,-506.13,0.00028356,2]
[311172484,1704964241422,-506.13,0.00028493,2]
[311172485,1704964241430,-9100.04106185,0.000285,4]
[311172486,1704964241441,-506.13,0.0002863,2]
[311172487,1704964241450,-163.389155,0.00028652,2]
[311172488,1704964241459,-151.10426194,0.0002873,7]
[311172489,1704964241469,-155.0,0.00028767,2]
[311172490,1704964241478,-506.13,0.00028767,2]
[311172492,1704964241487,-227.93301666,0.00028798,2]
[311172493,1704964241496,-360.27,0.00028799,2]
[311172495,1704964241505,-360.27,0.00028799,2]
[311172496,1704964241515,-360.27,0.00028799,2]
[311172497,1704964241524,-360.27,0.00028799,2]
[311172498,1704964241533,-360.27,0.00028799,2]
[311172499,1704964241542,-360.27,0.00028799,2]
[311172501,1704964241551,-360.27,0.00028799,2]
[311172503,1704964241560,-360.27,0.00028799,2]
[311172504,1704964241568,-360.27,0.00028799,2]
[311172505,1704964241578,-360.27,0.00028799,2]
[311172506,1704964241588,-89124.07237147,0.000288,2]
[311172507,1704964241597,-506.13,0.00028904,2]
[311172508,1704964241606,-1888.96501401,0.00028999,2]
[311172509,1704964241615,-404271.38785268,0.00028999,2]
[311172510,1704964241746,-10202.84952288,0.00028999,2]
[311172511,1704964241759,-26235.53908444,0.00028999,2]
[311172512,1704964241768,-155.09771156,0.00029,2]
[311172513,1704964241778,-1983.449916,0.00029,2]
[311172514,1704964241787,-79469.02841882,0.00029,2]
[311172515,1704964241797,-1000.0,0.00029,29]
[311172516,1704964241807,-1500.0,0.00029,2]
[311172517,1704964241816,-506.13,0.00029041,2]
[311172518,1704964241825,-7536.02362335,0.000291,2]
[311172519,1704964241835,-506.13,0.00029178,2]
[311172520,1704964241845,-620.25543728,0.00029203,2]
[311172521,1704964241854,-1000.70049034,0.00029212,2]
[311172522,1704964241864,-11160.64996053,0.00029253,3]
[311172523,1704964241874,-500.0,0.00029254,2]
[311172524,1704964241883,-500.0,0.00029254,2]
[311172525,1704964241892,-500.0,0.00029254,2]
[311172526,1704964241901,-500.0,0.00029254,2]
[311172527,1704964241911,-500.0,0.00029254,2]
[311172528,1704964242011,-500.0,0.00029254,2]
[311172529,1704964242021,-500.0,0.00029254,2]
[311172530,1704964242030,-500.0,0.00029254,2]
[311172531,1704964242039,-500.0,0.00029254,2]
[311172532,1704964242049,-445.1492657,0.00029254,2]
[311172533,1704964242058,-500.0,0.00029254,2]
[311172534,1704964242068,-500.0,0.00029254,2]
[311172535,1704964242077,-500.0,0.00029254,2]
[311172536,1704964242086,-494.35412662,0.00029254,2]
[311172537,1704964242095,-500.0,0.00029254,2]
[311172538,1704964242105,-537.63395444,0.00029254,2]
[311172539,1704964242114,-202.16833132,0.00029254,2]
[311172540,1704964242123,-500.0,0.00029254,2]
[311172541,1704964242132,-500.0,0.00029254,2]
[311172542,1704964242141,-500.0,0.00029254,2]
[311172543,1704964242150,-500.0,0.00029254,2]
[311172544,1704964242160,-500.0,0.00029254,2]
[311172545,1704964242169,-500.0,0.00029254,2]
[311172546,1704964242178,-500.0,0.00029254,2]
[311172547,1704964242187,-500.0,0.00029254,2]
[311172548,1704964242196,-422.20179558,0.00029254,2]
[311172549,1704964242206,-500.0,0.00029254,2]
[311172550,1704964242215,-500.0,0.00029254,2]
[311172551,1704964242227,-500.0,0.00029254,2]
[311172552,1704964242237,-500.0,0.00029254,2]
[311172553,1704964242246,-500.0,0.00029254,2]
[311172554,1704964242256,-523.96764088,0.00029255,2]
[311172555,1704964242265,-76258.10237502,0.00029255,2]
[311172556,1704964242274,-51682.07224249,0.00029255,3]
[311172557,1704964242283,-5000.0,0.00029255,5]
[311172558,1704964242293,-200.0,0.00029262,15]
[311172559,1704964242302,-200.0,0.00029262,15]
[311172560,1704964242311,-283.0,0.00029262,15]
[311172561,1704964242320,-506.13,0.00029315,2]
[311172562,1704964242329,-151.10426194,0.00029316,4]
[311172563,1704964242338,-506.13,0.00029452,2]
[311172564,1704964242348,-620.01274144,0.00029468,2]
[311172565,1704964242357,-154.86783505,0.00029565,2]
[311172566,1704964242366,-154.86783505,0.00029586,2]
[311172567,1704964242375,-506.13,0.00029589,2]
[311172568,1704964242384,-152.31502045,0.00029649,2]
[311172569,1704964242393,-152.31502045,0.00029684,2]
[311172570,1704964242402,-254.23001474,0.00029701,3]
[311172571,1704964242411,-506.13,0.00029726,2]
[311172572,1704964242421,-156.46544226,0.00029754,2]
[311172573,1704964242430,-242.90501079,0.0002976,4]
[311172574,1704964242439,-8088.26925045,0.00029849,2]
[311172575,1704964242448,-506.13,0.00029863,2]
[311172576,1704964242462,-118637.29995958,0.000299,2]
[311172577,1704964242474,-151.10426194,0.00029915,2]
[311172578,1704964242483,-162.0403879,0.00029935,2]
[311172579,1704964242492,-4537.0819288,0.00029937,2]
[311172580,1704964242501,-14797.68467581,0.00029996,2]
[311172581,1704964242510,-206.42662295,0.00029998,2]
[311172582,1704964242519,-506.13,0.00029999,2]
[311172583,1704964242528,-274.65236064,0.0003,7]
[311172584,1704964242537,-165.5787116,0.0003,7]
[311172585,1704964242546,-155.08684864,0.0003,2]
[311172586,1704964242556,-282.67247261,0.0003,3]
[311172587,1704964242564,-4999.98,0.0003,2]
[311172588,1704964242574,-5000.0,0.0003,2]
[311172589,1704964242583,-15040.88068289,0.0003,4]
[311172590,1704964242592,-6975.26133049,0.0003,4]
[311172591,1704964242601,-47246.6679772,0.0003,15]
[311172592,1704964242610,-463.46661998,0.0003,4]
[311172593,1704964242619,-62911.0,0.0003,2]
[311172594,1704964242629,-1200.0,0.0003,4]
[311172595,1704964242638,-5499.99999701,0.0003,2]
[311172596,1704964242647,-523.83,0.0003,2]
[311172597,1704964242657,-4452.61455502,0.0003,4]
[311172598,1704964242666,-2794.48662757,0.0003,4]
[311172599,1704964242675,-5000.0,0.0003,2]
[311172600,1704964242685,-5000.0,0.0003,2]
[311172601,1704964242694,-5000.0,0.0003,2]
[311172602,1704964242702,-672.38,0.0003,2]
[311172603,1704964242711,-501.00894022,0.0003,2]
[311172604,1704964242721,-300.0,0.0003,4]
[311172605,1704964242731,-409.88428547,0.0003,2]
[311172606,1704964242740,-200.0,0.0003,2]
[311172607,1704964242749,-2448.05627337,0.0003,2]
[311172608,1704964242761,-500.0,0.0003,7]
[311172609,1704964242769,-500.0,0.0003,7]
[311172610,1704964242778,-500.0,0.0003,7]
[311172611,1704964242789,-500.0,0.0003,7]
[311172612,1704964242798,-500.0,0.0003,7]
[311172613,1704964242808,-500.0,0.0003,7]
[311172614,1704964242817,-500.0,0.0003,7]
[311172615,1704964242828,-500.0,0.0003,7]
[311172616,1704964242838,-500.0,0.0003,7]
[311172617,1704964242848,-500.0,0.0003,7]
[311172618,1704964242857,-500.0,0.0003,7]
[311172619,1704964242866,-500.0,0.0003,7]
[311172620,1704964242874,-562.12,0.0003,7]
[311172621,1704964242884,-31920.09410148,0.0003,4]
[311172622,1704964242893,-163.55638359,0.0003,5]
[311172623,1704964242902,-155.18046676,0.0003,4]
[311172624,1704964242911,-11908.01427053,0.0003,5]
[311172625,1704964242920,-686.8051383,0.0003,4]
[311172626,1704964242930,-639.80669723,0.0003,4]
[311172627,1704964242939,-165.0,0.0003,3]
[311172628,1704964242948,-4999.97,0.0003,2]
[311172629,1704964242958,-187.29551158,0.0003,4]
[311172630,1704964242968,-309.84518051,0.0003,2]
[311172631,1704964242977,-534.09975459,0.0003,4]
[311172632,1704964242986,-12398.03121447,0.0003,14]
[311172633,1704964243078,-9512.98304222,0.0003,14]
[311172634,1704964243087,-156.43500893,0.0003,4]
[311172635,1704964243096,-825.9,0.0003,2]
[311172636,1704964243106,-1500.0,0.0003,2]
[311172637,1704964243116,-1752.95,0.0003,2]